fUSD/lending_fUSD_20240825
["ID","MTS","AMOUNT","RATE_DAILY","PERIOD"]
[335896224,1724573484591,-869.51,0.00010996,2]
[335896225,1724573484600,-7939.6,0.00010996,2]
[335896226,1724573484610,-869.51,0.00010996,2]
[335896227,1724573484620,-7939.6,0.00010996,2]
[335896228,1724573484631,-869.51,0.00010996,2]
[335896229,1724573484642,-7939.6,0.00010996,2]
[335896230,1724573484651,-7939.6,0.00010996,2]
[335896231,1724573484660,-638.06,0.00010996,2]
[335896232,1724573484670,-638.06,0.00010996,2]
[335896233,1724573484680,-638.06,0.00010996,2]
[335896234,1724573484690,-1023.92,0.00010996,2]
[335896235,1724573484699,-1023.92,0.00010996,2]
[335896236,1724573484709,-1023.92,0.00010996,2]
[335896237,1724573484719,-500.0,0.00010996,2]
[335896238,1724573484729,-500.0,0.00010996,2]
[335896239,1724573484738,-500.0,0.00010996,2]
[335896240,1724573484748,-5273.31,0.00010996,2]
[335896241,1724573484758,-500.0,0.00010996,2]
[335896242,1724573484768,-500.0,0.00010996,2]
[335896243,1724573484777,-5273.31,0.00010996,2]
[335896244,1724573484786,-469.91952343,0.00010996,2]
[335896245,1724573484795,-5273.31,0.00010996,2]
[335896246,1724573484805,-809.94,0.00010996,2]
[335896247,1724573484814,-809.94,0.00010996,2]
[335896248,1724573484823,-1312.54,0.00010996,2]
[335896249,1724573484833,-809.94,0.00010996,2]
[335896250,1724573484843,-1312.54,0.00010996,2]
[335896251,1724573484853,-1312.54,0.00010996,2]
[335896252,1724573484862,-500.0,0.00010996,2]
[335896253,1724573484872,-500.0,0.00010996,2]
[335896254,1724573484881,-500.0,0.00010996,2]
[335896255,1724573484891,-500.0,0.00010996,2]
[335896256,1724573484900,-500.0,0.00010996,2]
[335896257,1724573484909,-400.0,0.00010996,2]
[335896258,1724573484919,-400.0,0.00010996,2]
[335896259,1724573484928,-400.0,0.00010996,2]
[335896260,1724573484938,-650.55,0.00010996,2]
[335896261,1724573484951,-11847.99,0.00010996,2]
[335896262,1724573484961,-650.55,0.00010996,2]
[335896263,1724573484971,-11847.99,0.00010996,2]
[335896264,1724573484981,-650.55,0.00010996,2]
[335896265,1724573484990,-11847.99,0.00010996,2]
[335896266,1724573485000,-500.0,0.00010996,2]
[335896267,1724573485010,-500.0,0.00010996,2]
[335896268,1724573485019,-500.0,0.00010996,2]
[335896269,1724573485029,-500.0,0.00010996,2]
[335896270,1724573485039,-2402.00740994,0.00010996,2]
[335896271,1724573485171,-243.98241,0.00010997,2]
[335896272,1724573485193,-745.42,0.00010997,2]
[335896273,1724573485203,-745.42,0.00010997,2]
[335896274,1724573485212,-500.0,0.00010997,2]
[335896275,1724573485221,-500.0,0.00010997,2]
[335896276,1724573485230,-251.83411175,0.00010997,2]
[335896277,1724573485239,-283.4568,0.00010997,2]
[335896278,1724573485249,-500.0,0.00010997,2]
[335896279,1724573485258,-500.0,0.00010997,2]
[335896280,1724573485269,-500.0,0.00010997,2]
[335896281,1724573485280,-500.0,0.00010997,2]
[335896282,1724573485290,-500.0,0.00010997,2]
[335896283,1724573485300,-500.0,0.00010997,2]
[335896284,1724573485309,-591.13291374,0.00010997,2]
[335896285,1724573485319,-500.0,0.00010997,2]
[335896286,1724573485328,-500.0,0.00010997,2]
[335896287,1724573485337,-500.0,0.00010997,2]
[335896288,1724573485348,-500.0,0.00010997,2]
[335896289,1724573485359,-500.0,0.00010997,2]
[335896290,1724573485370,-500.0,0.00010997,2]
[335896291,1724573485381,-500.0,0.00010997,2]
[335896292,1724573485390,-500.0,0.00010997,2]
[335896293,1724573485401,-151.0,0.00010997,2]
[335896294,1724573485410,-151.0,0.00010997,2]
[335896295,1724573485420,-151.0,0.00010997,2]
[335896296,1724573485431,-151.0,0.00010997,2]
[335896297,1724573485440,-151.0,0.00010997,2]
[335896298,1724573485452,-296.165468,0.00010997,2]
[335896299,1724573485462,-153.865711,0.00010997,2]
[335896300,1724573485471,-153.865711,0.00010997,2]
[335896301,1724573485481,-153.865711,0.00010997,2]
[335896302,1724573485491,-153.865711,0.00010997,2]
[335896303,1724573485501,-153.865711,0.00010997,2]
[335896304,1724573485510,-153.865711,0.00010997,2]
[335896305,1724573485520,-586.18,0.00010997,2]
[335896306,1724573485531,-586.18,0.00010997,2]
[335896307,1724573485540,-586.18,0.00010997,2]
[335896308,1724573485549,-586.18,0.00010997,2]
[335896309,1724573485560,-151.0,0.00010997,2]
[335896310,1724573485570,-151.0,0.00010997,2]
[335896311,1724573485580,-228.592688,0.00010997,2]
[335896312,1724573485589,-266.613066,0.00010997,2]
[335896313,1724573485599,-266.613066,0.00010997,2]
[335896314,1724573485608,-266.613066,0.00010997,2]
[335896315,1724573485618,-266.613066,0.00010997,2]
[335896316,1724573485629,-266.613066,0.00010997,2]
[335896317,1724573485641,-266.613076,0.00010997,2]
[335896318,1724573485650,-500.0,0.00010997,2]
[335896319,1724573485659,-500.0,0.00010997,2]
[335896320,1724573485669,-500.0,0.00010997,2]
[335896321,1724573485678,-351.07401416,0.00010997,2]
[335896322,1724573485688,-3130.07,0.00010997,2]
[335896323,1724573485699,-3130.07,0.00010997,2]
[335896324,1724573485708,-500.0,0.00010997,2]
[335896325,1724573485719,-500.0,0.00010997,2]
[335896326,1724573485729,-905.97,0.00010997,2]
[335896327,1724573485738,-905.97,0.00010997,2]
[335896328,1724573485747,-1143.85,0.00010997,2]
[335896329,1724573485757,-1143.85,0.00010997,2]
[335896330,1724573485766,-172.256928,0.00010997,2]
[335896331,1724573485775,-1824.36,0.00010997,2]
[335896332,1724573485784,-1824.36,0.00010997,2]
[335896333,1724573485793,-1841.05,0.00010997,2]
[335896334,1724573485802,-1841.05,0.00010997,2]
[335896335,1724573485812,-1525.6,0.00010997,2]
[335896336,1724573485821,-1525.6,0.00010997,2]
[335896337,1724573485830,-223.858382,0.00010997,2]
[335896338,1724573485839,-223.858382,0.00010997,2]
[335896339,1724573485849,-223.858382,0.00010997,2]
[335896340,1724573485858,-223.858382,0.00010997,2]
[335896341,1724573485867,-223.858382,0.00010997,2]
[335896342,1724573485876,-223.858388,0.00010997,2]
[335896343,1724573485885,-1732.82,0.00010997,2]
[335896344,1724573485894,-1732.82,0.00010997,2]
[335896345,1724573485903,-921.53,0.00010997,2]
[335896346,1724573485912,-921.53,0.00010997,2]
[335896347,1724573485922,-678.41,0.00010997,2]
[335896348,1724573485931,-678.41,0.00010997,2]
[335896349,1724573485940,-725.65,0.00010997,2]
[335896350,1724573485951,-725.65,0.00010997,2]
[335896351,1724573485960,-725.65,0.00010997,2]
[335896352,1724573485969,-725.65,0.00010997,2]
[335896353,1724573485978,-1213.87,0.00010997,2]
[335896354,1724573485987,-1213.87,0.00010997,2]
[335896355,1724573485997,-621.76,0.00010997,2]
[335896356,1724573486006,-621.76,0.00010997,2]
[335896357,1724573486015,-621.76,0.00010997,2]
[335896358,1724573486024,-621.76,0.00010997,2]
[335896359,1724573486033,-621.76,0.00010997,2]
[335896360,1724573486042,-158.44294677,0.00010997,2]
[335896361,1724573486051,-500.0,0.00010997,2]
[335896362,1724573486060,-500.0,0.00010997,2]
[335896363,1724573486069,-500.0,0.00010997,2]
[335896364,1724573486078,-500.0,0.00010997,2]
[335896365,1724573486087,-557.51,0.00010997,2]
[335896366,1724573486096,-557.51,0.00010997,2]
[335896367,1724573486105,-557.51,0.00010997,2]
[335896368,1724573486114,-557.51,0.00010997,2]
[335896369,1724573486123,-1191.68,0.00010997,2]
[335896370,1724573486132,-1191.68,0.00010997,2]
[335896371,1724573486141,-500.0,0.00010997,2]
[335896372,1724573486150,-500.0,0.00010997,2]
[335896373,1724573486159,-500.0,0.00010997,2]
[335896374,1724573486169,-500.0,0.00010997,2]
[335896375,1724573486179,-1295.8,0.00010997,2]
[335896376,1724573486189,-1295.8,0.00010997,2]
[335896377,1724573486199,-1295.8,0.00010997,2]
[335896378,1724573486209,-1295.8,0.00010997,2]
[335896379,1724573486218,-1295.8,0.00010997,2]
[335896380,1724573486228,-462.42888654,0.00010997,2]
[335896381,1724573486238,-500.0,0.00010997,2]
[335896382,1724573486247,-500.0,0.00010997,2]
[335896383,1724573486259,-500.0,0.00010997,2]
[335896384,1724573486268,-500.0,0.00010997,2]
[335896385,1724573486279,-500.0,0.00010997,2]
[335896386,1724573486290,-500.0,0.00010997,2]
[335896387,1724573486300,-1534.53,0.00010997,2]
[335896388,1724573486310,-1534.53,0.00010997,2]
[335896389,1724573486321,-500.0,0.00010997,2]
[335896390,1724573486331,-500.0,0.00010997,2]
[335896391,1724573486343,-509.58,0.00010997,2]
[335896392,1724573486352,-509.58,0.00010997,2]
[335896393,1724573486361,-748.03,0.00010997,2]
[335896394,1724573486371,-748.03,0.00010997,2]
[335896395,1724573486382,-1077.64,0.00010997,2]
[335896396,1724573486392,-1077.64,0.00010997,2]
[335896397,1724573486402,-1077.64,0.00010997,2]
[335896398,1724573486414,-1077.64,0.00010997,2]
[335896399,1724573486423,-1077.64,0.00010997,2]
[335896400,1724573486433,-500.0,0.00010997,2]
[335896401,1724573486442,-500.0,0.00010997,2]
[335896402,1724573486451,-500.0,0.00010997,2]
[335896403,1724573486460,-500.0,0.00010997,2]
[335896404,1724573486471,-500.0,0.00010997,2]
[335896405,1724573486480,-500.0,0.00010997,2]
[335896406,1724573486490,-500.0,0.00010997,2]
[335896407,1724573486500,-500.0,0.00010997,2]
[335896408,1724573486510,-476.27409557,0.00010997,2]
[335896409,1724573486520,-566.8,0.00010997,2]
[335896410,1724573486529,-566.8,0.00010997,2]
[335896411,1724573486539,-566.8,0.00010997,2]
[335896412,1724573486549,-566.8,0.00010997,2]
[335896413,1724573486558,-500.0,0.00010997,2]
[335896414,1724573486567,-500.0,0.00010997,2]
[335896415,1724573486576,-500.0,0.00010997,2]
[335896416,1724573486585,-500.0,0.00010997,2]
[335896417,1724573486594,-500.0,0.00010997,2]
[335896418,1724573486604,-500.0,0.00010997,2]
[335896419,1724573486613,-500.0,0.00010997,2]
[335896420,1724573486623,-401.04,0.00010997,2]
[335896421,1724573486633,-500.0,0.00010997,2]
[335896422,1724573486648,-500.0,0.00010997,2]
[335896423,1724573486658,-542.09394595,0.00010997,2]
[335896424,1724573486667,-264.364301,0.00010997,2]
[335896425,1724573486677,-605.55,0.00010997,2]
[335896426,1724573486687,-605.55,0.00010997,2]
[335896427,1724573486698,-605.55,0.00010997,2]
[335896428,1724573486707,-605.55,0.00010997,2]
[335896429,1724573486717,-264.364309,0.00010997,2]
[335896430,1724573486728,-605.55,0.00010997,2]
[335896431,1724573486739,-546.58,0.00010997,2]
[335896432,1724573486748,-546.58,0.00010997,2]
[335896433,1724573486758,-418.86394445,0.00010997,2]
[335896434,1724573486768,-500.0,0.00010997,2]
[335896435,1724573486777,-500.0,0.00010997,2]
[335896436,1724573486787,-500.0,0.00010997,2]
[335896437,1724573486797,-500.0,0.00010997,2]
[335896438,1724573486807,-500.0,0.00010997,2]
[335896439,1724573486817,-500.0,0.00010997,2]
[335896440,1724573486827,-500.0,0.00010997,2]
[335896441,1724573486836,-949.79,0.00010997,2]
[335896442,1724573486845,-949.79,0.00010997,2]
[335896443,1724573486855,-949.79,0.00010997,2]
[335896444,1724573486864,-949.79,0.00010997,2]
[335896445,1724573486874,-500.0,0.00010997,2]
[335896446,1724573486883,-500.0,0.00010997,2]
[335896447,1724573486894,-180.54314786,0.00010997,2]
[335896448,1724573486903,-151.0,0.00010997,2]
[335896449,1724573486912,-500.0,0.00010997,2]
[335896450,1724573486921,-500.0,0.00010997,2]
[335896451,1724573486931,-177.70785233,0.00010997,2]
[335896452,1724573486940,-500.0,0.00010997,2]
[335896453,1724573486950,-500.0,0.00010997,2]
[335896454,1724573486959,-151.0,0.00010997,2]
[335896455,1724573486969,-500.0,0.00010997,2]
[335896456,1724573486978,-500.0,0.00010997,2]
[335896457,1724573486987,-500.0,0.00010997,2]
[335896458,1724573486996,-500.0,0.00010997,2]
[335896459,1724573487005,-623.11,0.00010997,2]
[335896460,1724573487014,-623.11,0.00010997,2]
[335896461,1724573487024,-623.11,0.00010997,2]
[335896462,1724573487034,-623.11,0.00010997,2]
[335896463,1724573487044,-623.11,0.00010997,2]
[335896464,1724573487053,-500.0,0.00010997,2]
[335896465,1724573487167,-500.0,0.00010997,2]
[335896466,1724573487177,-500.0,0.00010997,2]
[335896467,1724573487186,-500.0,0.00010997,2]
[335896468,1724573487196,-500.0,0.00010997,2]
[335896469,1724573487205,-500.0,0.00010997,2]
[335896470,1724573487215,-358.36615225,0.00010997,2]
[335896471,1724573487224,-500.0,0.00010997,2]
[335896472,1724573487233,-500.0,0.00010997,2]
[335896473,1724573487243,-500.0,0.00010997,2]
[335896474,1724573487252,-500.0,0.00010997,2]
[335896475,1724573487262,-604.15,0.00010997,2]
[335896476,1724573487271,-604.15,0.00010997,2]
[335896477,1724573487281,-604.15,0.00010997,2]
[335896478,1724573487290,-604.15,0.00010997,2]
[335896479,1724573487299,-500.0,0.00010997,2]
[335896480,1724573487308,-500.0,0.00010997,2]
[335896481,1724573487318,-518.84727768,0.00010997,2]
[335896482,1724573487328,-500.0,0.00010997,2]
[335896483,1724573487337,-500.0,0.00010997,2]
[335896484,1724573487347,-500.0,0.00010997,2]
[335896485,1724573487356,-500.0,0.00010997,2]
[335896486,1724573487365,-518.25208043,0.00010997,2]
[335896487,1724573487375,-500.0,0.00010997,2]
[335896488,1724573487384,-528.10972905,0.00010997,2]
[335896489,1724573487394,-433.06,0.00010997,2]
[335896490,1724573487403,-218.26071688,0.00010997,2]
[335896491,1724573487412,-563.35,0.00010997,2]
[335896492,1724573487422,-563.35,0.00010997,2]
[335896493,1724573487431,-563.35,0.00010997,2]
[335896494,1724573487441,-563.35,0.00010997,2]
[335896495,1724573487452,-500.0,0.00010997,2]
[335896496,1724573487461,-500.0,0.00010997,2]
[335896497,1724573487470,-500.0,0.00010997,2]
[335896498,1724573487480,-512.10582227,0.00010997,2]
[335896499,1724573487489,-500.0,0.00010997,2]
[335896500,1724573487499,-500.0,0.00010997,2]
[335896501,1724573487509,-500.0,0.00010997,2]
[335896502,1724573487519,-500.0,0.00010997,2]
[335896503,1724573487528,-500.0,0.00010997,2]
[335896504,1724573487537,-500.0,0.00010997,2]
[335896505,1724573487547,-2262.16,0.00010997,2]
[335896506,1724573487556,-2262.16,0.00010997,2]
[335896507,1724573487566,-500.0,0.00010997,2]
[335896508,1724573487576,-500.0,0.00010997,2]
[335896509,1724573487585,-500.0,0.00010997,2]
[335896510,1724573487594,-500.0,0.00010997,2]
[335896511,1724573487603,-599.7,0.00010997,2]
[335896512,1724573487613,-599.7,0.00010997,2]
[335896513,1724573487622,-599.7,0.00010997,2]
[335896514,1724573487636,-599.7,0.00010997,2]
[335896515,1724573487646,-549.5,0.00010997,2]
[335896516,1724573487655,-549.5,0.00010997,2]
[335896517,1724573487665,-725.8,0.00010997,2]
[335896518,1724573487676,-725.8,0.00010997,2]
[335896519,1724573487685,-500.0,0.00010997,2]
[335896520,1724573487697,-500.0,0.00010997,2]
[335896521,1724573487706,-500.0,0.00010997,2]
[335896522,1724573487717,-500.0,0.00010997,2]
[335896523,1724573487726,-500.0,0.00010997,2]
[335896524,1724573487736,-500.0,0.00010997,2]
[335896525,1724573487745,-6793.26,0.00010997,2]
[335896526,1724573487754,-500.0,0.00010997,2]
[335896527,1724573487763,-6793.26,0.00010997,2]
[335896528,1724573487773,-500.0,0.00010997,2]
[335896529,1724573487782,-500.0,0.00010997,2]
[335896530,1724573487793,-500.0,0.00010997,2]
[335896531,1724573487803,-846.75,0.00010997,2]
[335896532,1724573487812,-846.75,0.00010997,2]
[335896533,1724573487822,-1527.82,0.00010997,2]
[335896534,1724573487831,-1527.82,0.00010997,2]
[335896535,1724573487841,-1315.44,0.00010997,2]
[335896536,1724573487851,-1315.44,0.00010997,2]
[335896537,1724573487860,-500.0,0.00010997,2]
[335896538,1724573487870,-406.23895094,0.00010997,2]
[335896539,1724573487879,-500.0,0.00010997,2]
[335896540,1724573487889,-500.0,0.00010997,2]
[335896541,1724573487898,-500.0,0.00010997,2]
[335896542,1724573487908,-500.0,0.00010997,2]
[335896543,1724573487917,-257.30142712,0.00010997,2]
[335896544,1724573487926,-1126.45,0.00010997,2]
[335896545,1724573487936,-1126.45,0.00010997,2]
[335896546,1724573487946,-1321.25,0.00010997,2]
[335896547,1724573487963,-1321.25,0.00010997,2]
[335896548,1724573487972,-680.48,0.00010997,2]
[335896549,1724573487981,-680.48,0.00010997,2]
[335896550,1724573487990,-838.53,0.00010997,2]
[335896551,1724573488000,-838.53,0.00010997,2]
[335896552,1724573488009,-4610.99,0.00010997,2]
[335896553,1724573488018,-1276.9,0.00010997,2]
[335896554,1724573488029,-4610.99,0.00010997,2]
[335896555,1724573488038,-1276.9,0.00010997,2]
[335896556,1724573488047,-549.34,0.00010997,2]
[335896557,1724573488057,-549.34,0.00010997,2]
[335896558,1724573488066,-152.605187,0.00010997,2]
[335896559,1724573488076,-150.102167,0.00010997,2]
[335896560,1724573488084,-2112.53,0.00010997,2]
[335896561,1724573488094,-150.102167,0.00010997,2]
[335896562,1724573488103,-2112.53,0.00010997,2]
[335896563,1724573488113,-500.0,0.00010997,2]
[335896564,1724573488122,-4083.83,0.00010997,2]
[335896565,1724573488131,-500.0,0.00010997,2]
[335896566,1724573488140,-4083.83,0.00010997,2]
[335896567,1724573488149,-4083.83,0.00010997,2]
[335896568,1724573488159,-504.54675927,0.00010997,2]
[335896569,1724573488168,-500.0,0.00010997,2]
[335896570,1724573488177,-2551.413537,0.00010997,2]
[335896571,1724573488186,-500.0,0.00010997,2]
[335896572,1724573488202,-2551.413537,0.00010997,2]
[335896573,1724573488211,-554.75,0.00010997,2]
[335896574,1724573488220,-554.75,0.00010997,2]
[335896575,1724573488229,-554.75,0.00010997,2]
[335896576,1724573488238,-1317.96,0.00010997,2]
[335896577,1724573488247,-1942.65,0.00010997,2]
[335896578,1724573488256,-554.75,0.00010997,2]
[335896579,1724573488265,-1317.96,0.00010997,2]
[335896580,1724573488275,-554.75,0.00010997,2]
[335896581,1724573488284,-1942.65,0.00010997,2]
[335896582,1724573488293,-1556.521208,0.00010997,2]
[335896583,1724573488303,-1556.521208,0.00010997,2]
[335896584,1724573488312,-500.0,0.00010997,2]
[335896585,1724573488322,-1752.860794,0.00010997,2]
[335896586,1724573488331,-1752.860794,0.00010997,2]
[335896587,1724573488341,-742.32,0.00010997,2]
[335896588,1724573488350,-500.0,0.00010997,2]
[335896589,1724573488359,-742.32,0.00010997,2]
[335896590,1724573488368,-157.02165582,0.00010997,2]
[335896591,1724573488378,-7844.32,0.00010997,2]
[335896592,1724573488387,-7844.32,0.00010997,2]
[335896593,1724573488397,-7844.32,0.00010997,2]
[335896594,1724573488406,-1084.51,0.00010997,2]
[335896595,1724573488415,-1084.51,0.00010997,2]
[335896596,1724573488425,-577.46,0.00010997,2]
[335896597,1724573488435,-2626.99,0.00010997,2]
[335896598,1724573488446,-577.46,0.00010997,2]
[335896599,1724573488455,-2626.99,0.00010997,2]
[335896600,1724573488464,-577.46,0.00010997,2]
[335896601,1724573488474,-577.46,0.00010997,2]
[335896602,1724573488484,-577.46,0.00010997,2]
[335896603,1724573488493,-584.51,0.00010997,2]
[335896604,1724573488502,-584.51,0.00010997,2]
[335896605,1724573488511,-584.51,0.00010997,2]
[335896606,1724573488521,-500.0,0.00010997,2]
[335896607,1724573488530,-500.0,0.00010997,2]
[335896608,1724573488539,-500.0,0.00010997,2]
[335896609,1724573488549,-345.45,0.00010997,2]
[335896610,1724573488558,-881.04,0.00010997,2]
[335896611,1724573488567,-881.04,0.00010997,2]
[335896612,1724573488577,-826.84,0.00010997,2]
[335896613,1724573488587,-826.84,0.00010997,2]
[335896614,1724573488597,-826.84,0.00010997,2]
[335896615,1724573488606,-826.84,0.00010997,2]
[335896616,1724573488616,-826.84,0.00010997,2]
[335896617,1724573488625,-2050.49,0.00010997,2]
[335896618,1724573488635,-2050.49,0.00010997,2]
[335896619,1724573488649,-1570.78,0.00010997,2]
[335896620,1724573488658,-529.32,0.00010997,2]
[335896621,1724573488668,-1570.78,0.00010997,2]
[335896622,1724573488677,-529.32,0.00010997,2]
[335896623,1724573488688,-848.62,0.00010997,2]
[335896624,1724573488699,-848.62,0.00010997,2]
[335896625,1724573488708,-500.0,0.00010997,2]
[335896626,1724573488718,-330.55,0.00010997,2]
[335896627,1724573488728,-978.58,0.00010997,2]
[335896628,1724573488737,-978.58,0.00010997,2]
[335896629,1724573488746,-833.23,0.00010997,2]
[335896630,1724573488756,-833.23,0.00010997,2]
[335896631,1724573488766,-833.23,0.00010997,2]
[335896632,1724573488775,-500.0,0.00010997,2]
[335896633,1724573488785,-833.23,0.00010997,2]
[335896634,1724573488794,-833.23,0.00010997,2]
[335896635,1724573488803,-500.0,0.00010997,2]
[335896636,1724573488813,-1910.97,0.00010997,2]
[335896637,1724573488822,-1910.97,0.00010997,2]
[335896638,1724573488831,-500.0,0.00010997,2]
[335896639,1724573488841,-500.0,0.00010997,2]
[335896640,1724573488851,-500.0,0.00010997,2]
[335896641,1724573488861,-500.0,0.00010997,2]
[335896642,1724573488871,-1200.58,0.00010997,2]
[335896643,1724573488881,-1200.58,0.00010997,2]
[335896644,1724573488998,-4053.09,0.00010997,2]
[335896645,1724573489007,-4053.09,0.00010997,2]
[335896646,1724573489017,-4053.09,0.00010997,2]
[335896647,1724573489026,-344.37807784,0.00010997,2]
[335896648,1724573489036,-561.08,0.00010997,2]
[335896649,1724573489047,-561.08,0.00010997,2]
[335896650,1724573489056,-500.0,0.00010997,2]
[335896651,1724573489066,-500.0,0.00010997,2]
[335896652,1724573489076,-500.0,0.00010997,2]
[335896653,1724573489086,-500.0,0.00010997,2]
[335896654,1724573489095,-500.0,0.00010997,2]
[335896655,1724573489105,-560.9,0.00010997,2]
[335896656,1724573489114,-560.9,0.00010997,2]
[335896657,1724573489124,-7579.76,0.00010997,2]
[335896658,1724573489134,-7579.76,0.00010997,2]
[335896659,1724573489144,-7579.76,0.00010997,2]
[335896660,1724573489153,-1375.29,0.00010997,2]
[335896661,1724573489163,-1375.29,0.00010997,2]
[335896662,1724573489173,-500.0,0.00010997,2]
[335896663,1724573489182,-292.53341442,0.00010997,2]
[335896664,1724573489192,-849.4,0.00010997,2]
[335896665,1724573489203,-849.4,0.00010997,2]
[335896666,1724573489212,-500.0,0.00010997,2]
[335896667,1724573489222,-191.78269067,0.00010997,2]
[335896668,1724573489232,-954.42,0.00010997,2]
[335896669,1724573489241,-954.42,0.00010997,2]
[335896670,1724573489251,-954.42,0.00010997,2]
[335896671,1724573489260,-954.42,0.00010997,2]
[335896672,1724573489270,-954.42,0.00010997,2]
[335896673,1724573489280,-1025.94,0.00010997,2]
[335896674,1724573489289,-1025.94,0.00010997,2]
[335896675,1724573489298,-788.65,0.00010997,2]
[335896676,1724573489307,-788.65,0.00010997,2]
[335896677,1724573489316,-3650.91,0.00010997,2]
[335896678,1724573489325,-3650.91,0.00010997,2]
[335896679,1724573489336,-3650.91,0.00010997,2]
[335896680,1724573489345,-500.0,0.00010997,2]
[335896681,1724573489355,-500.0,0.00010997,2]
[335896682,1724573489364,-1345.16,0.00010997,2]
[335896683,1724573489374,-709.56,0.00010997,2]
[335896684,1724573489383,-1345.16,0.00010997,2]
[335896685,1724573489393,-709.56,0.00010997,2]
[335896686,1724573489402,-500.0,0.00010997,2]
[335896687,1724573489412,-650.36,0.00010997,2]
[335896688,1724573489421,-500.0,0.00010997,2]
[335896689,1724573489430,-650.36,0.00010997,2]
[335896690,1724573489439,-4035.48,0.00010997,2]
[335896691,1724573489450,-4035.48,0.00010997,2]
[335896692,1724573489460,-4035.48,0.00010997,2]
[335896693,1724573489469,-500.0,0.00010997,2]
[335896694,1724573489479,-500.0,0.00010997,2]
[335896695,1724573489489,-2320.74,0.00010997,2]
[335896696,1724573489499,-2320.74,0.00010997,2]
[335896697,1724573489508,-500.0,0.00010997,2]
[335896698,1724573489518,-500.0,0.00010997,2]
[335896699,1724573489526,-711.78,0.00010997,2]
[335896700,1724573489536,-711.78,0.00010997,2]
[335896701,1724573489545,-601.99,0.00010997,2]
[335896702,1724573489555,-601.99,0.00010997,2]
[335896703,1724573489564,-500.0,0.00010997,2]
[335896704,1724573489573,-500.0,0.00010997,2]
[335896705,1724573489582,-863.84,0.00010997,2]
[335896706,1724573489591,-863.84,0.00010997,2]
[335896707,1724573489601,-3192.21,0.00010997,2]
[335896708,1724573489610,-3192.21,0.00010997,2]
[335896709,1724573489620,-3100.33,0.00010997,2]
[335896710,1724573489630,-1096.12,0.00010997,2]
[335896711,1724573489643,-1096.12,0.00010997,2]
[335896712,1724573489652,-3100.33,0.00010997,2]
[335896713,1724573489662,-1146.68,0.00010997,2]
[335896714,1724573489673,-1146.68,0.00010997,2]
[335896715,1724573489683,-951.87,0.00010997,2]
[335896716,1724573489693,-951.87,0.00010997,2]
[335896717,1724573489703,-2778.06,0.00010997,2]
[335896718,1724573489714,-2778.06,0.00010997,2]
[335896719,1724573489723,-3456.07,0.00010997,2]
[335896720,1724573489733,-3456.07,0.00010997,2]
[335896721,1724573489743,-1161.15,0.00010997,2]
[335896722,1724573489752,-1161.15,0.00010997,2]
[335896723,1724573489762,-632.89,0.00010997,2]